fUSD/lending_fUSD_20260412
["ID","MTS","AMOUNT","RATE_DAILY","PERIOD"]
[420330797,1775973046181,-13645.90841523,0.00031199,2]
[420330799,1775973046192,-3782.52146621,0.00031199,2]
[420330801,1775973046205,-156.2126,0.000312,2]
[420330803,1775973046214,-351.46,0.000312,30]
[420330805,1775973046229,-500.0,0.00031781,120]
[420330807,1775973046239,-505.45933209,0.0003186,2]
[420330809,1775973046251,-178.42713857,0.00032055,30]
[420330810,1775973046261,-156.6661,0.000324,2]
[420330812,1775973046275,-240.0,0.00032521,24]
[420330814,1775973046288,-150.0,0.00032562,2]
[420330816,1775973046298,-500.0,0.00032603,120]
[420330819,1775973046311,-400.53794241,0.00032777,2]
[420330820,1775973046322,-213.0,0.00032818,30]
[420330823,1775973046333,-278.0,0.00032818,30]
[420330825,1775973046343,-915.0,0.00032818,30]
[420330827,1775973046353,-222.0,0.00032825,30]
[420330829,1775973046362,-320.0,0.00032825,30]
[420330831,1775973046372,-679.0,0.00032825,30]
[420330833,1775973046382,-1201.0,0.00032825,30]
[420330835,1775973046392,-365.0,0.00032832,30]
[420330837,1775973046402,-364.0,0.00032832,30]
[420330838,1775973046414,-348.3,0.00032877,2]
[420330840,1775973046425,-317.84,0.00032877,2]
[420330842,1775973046435,-351.46,0.00033363,30]
[420330844,1775973046445,-500.0,0.00033425,120]
[420330847,1775973046456,-26170.0,0.000335,2]
[420330849,1775973046467,-301.450548,0.00033534,14]
[420330851,1775973046478,-157.1209,0.000336,2]
[420330853,1775973046489,-500.0,0.0003366,120]
[420330855,1775973046499,-439.53607661,0.00033732,2]
[420330856,1775973046510,-213.0,0.00033818,30]
[420330858,1775973046521,-278.0,0.00033818,30]
[420330860,1775973046531,-915.0,0.00033818,30]
[420330862,1775973046540,-222.0,0.00033825,30]
[420330864,1775973046550,-320.0,0.00033825,30]
[420330866,1775973046562,-679.0,0.00033825,30]
[420330868,1775973046571,-1201.0,0.00033825,30]
[420330871,1775973046581,-365.0,0.00033832,30]
[420330873,1775973046592,-364.0,0.00033832,30]
[420330875,1775973046602,-150.0,0.0003419,2]
[420330877,1775973046614,-200.0,0.00034235,60]
[420330878,1775973046624,-333.0,0.00034235,60]
[420330879,1775973046634,-250.0,0.00034235,60]
[420330880,1775973046644,-357.0,0.00034235,60]
[420330881,1775973046654,-500.0,0.00034247,120]
[420330882,1775973046664,-164.9762881,0.00034265,60]
[420330883,1775973046673,-281.7087867,0.00034265,60]
[420330884,1775973046683,-308.7170316,0.00034265,60]
[420330885,1775973046692,-500.0,0.00034265,60]
[420330886,1775973046705,-500.0,0.00034265,60]
[420330887,1775973046714,-500.0,0.00034265,60]
[420330888,1775973046724,-500.0,0.00034265,60]
[420330889,1775973046735,-500.0,0.00034265,60]
[420330890,1775973046746,-500.0,0.00034265,60]
[420330891,1775973046755,-500.0,0.00034265,60]
[420330892,1775973046765,-500.0,0.00034265,60]
[420330893,1775973046776,-500.0,0.00034265,60]
[420330894,1775973046786,-500.0,0.00034265,60]
[420330895,1775973046796,-500.0,0.00034265,60]
[420330896,1775973046806,-848.560592,0.00034265,60]
[420330897,1775973046817,-500.0,0.00034265,60]
[420330898,1775973046827,-500.0,0.00034265,60]
[420330899,1775973046838,-664.2513182,0.00034265,60]
[420330900,1775973046849,-505.6448155,0.00034265,60]
[420330901,1775973046859,-500.0,0.00034265,60]
[420330902,1775973046871,-500.0,0.00034265,60]
[420330903,1775973046883,-596.1525526,0.00034265,60]
[420330904,1775973046893,-500.0,0.00034265,60]
[420330905,1775973046911,-500.0,0.00034265,60]
[420330906,1775973046921,-500.0,0.00034265,60]
[420330907,1775973046931,-624.1400034,0.00034265,60]
[420330908,1775973046948,-500.0,0.00034265,60]
[420330909,1775973046960,-500.0,0.00034265,60]
[420330910,1775973046971,-500.0,0.00034265,60]
[420330911,1775973046980,-500.0,0.00034265,60]
[420330912,1775973046991,-500.0,0.00034265,60]
[420330913,1775973047001,-500.0,0.00034265,60]
[420330914,1775973047012,-500.0,0.00034265,60]
[420330915,1775973047022,-500.0,0.00034265,60]
[420330916,1775973047031,-500.0,0.00034265,60]
[420330917,1775973047041,-500.0,0.00034265,60]
[420330918,1775973047056,-500.0,0.00034265,60]
[420330919,1775973047066,-500.0,0.00034265,60]
[420330920,1775973047075,-500.0,0.00034265,60]
[420330921,1775973047084,-500.0,0.00034265,60]
[420330922,1775973047101,-744.3935386,0.00034265,60]
[420330923,1775973047112,-500.0,0.00034265,60]
[420330924,1775973047122,-274.3081323,0.00034265,60]
[420330925,1775973047135,-500.0,0.00034265,60]
[420330926,1775973047151,-500.0,0.00034265,60]
[420330927,1775973047162,-500.0,0.00034265,60]
[420330928,1775973047175,-500.0,0.00034265,60]
[420330929,1775973047196,-500.0,0.00034265,60]
[420330930,1775973047212,-500.0,0.00034265,60]
[420330931,1775973047235,-500.0,0.00034265,60]
[420330932,1775973047251,-500.0,0.00034265,60]
[420330933,1775973047275,-500.0,0.00034265,60]
[420330934,1775973047291,-500.0,0.00034265,60]
[420330935,1775973047310,-500.0,0.00034265,60]
[420330936,1775973047344,-500.0,0.00034265,60]
[420330937,1775973047379,-536.1968254,0.00034265,60]
[420330938,1775973047404,-5532.0,0.000343,3]
[420330939,1775973047429,-13645.90841523,0.00034624,2]
[420330940,1775973047439,-3782.52146621,0.00034624,2]
[420330941,1775973047469,-301.53,0.000347,30]
[420330942,1775973047481,-516.69,0.000347,30]
[420330943,1775973047495,-1500.0,0.00034795,2]
[420330944,1775973047520,-213.0,0.00034818,30]
[420330945,1775973047537,-278.0,0.00034818,30]
[420330946,1775973047549,-915.0,0.00034818,30]
[420330947,1775973047570,-222.0,0.00034825,30]
[420330948,1775973047580,-320.0,0.00034825,30]
[420330949,1775973047592,-679.0,0.00034825,30]
[420330950,1775973047603,-1201.0,0.00034825,30]
[420330951,1775973047623,-365.0,0.00034832,30]
[420330952,1775973047636,-364.0,0.00034832,30]
[420330953,1775973047647,-157.577,0.000349,2]
[420330954,1775973047670,-500.63,0.00034911,5]
[420330955,1775973047687,-250.0,0.00035,7]
[420330956,1775973047705,-700.15,0.00035041,2]
[420330957,1775973047722,-500.0,0.00035068,120]
[420330958,1775973047739,-5532.0,0.000351,5]
[420330959,1775973047748,-1122.26,0.000353,120]
[420330960,1775973047774,-2774.78,0.000353,120]
[420330961,1775973047785,-974.26,0.000354,90]
[420330962,1775973047802,-351.46,0.00035526,30]
[420330963,1775973047820,-2006.66,0.00035591,120]
[420330964,1775973047830,-500.0,0.00035616,120]
[420330965,1775973047848,-733.44074606,0.00035616,120]
[420330966,1775973047863,-1000.0,0.00035616,120]
[420330967,1775973047876,-317.84,0.00035616,2]
[420330968,1775973047897,-1000.0,0.00035665,2]
[420330969,1775973047910,-1000.0,0.00035665,2]
[420330970,1775973047928,-1000.0,0.00035665,2]
[420330971,1775973047948,-1000.0,0.00035665,2]
[420330972,1775973047959,-1000.0,0.00035665,2]
[420330973,1775973047977,-439.53607655,0.00035677,2]
[420330974,1775973047991,-301.53,0.000357,30]
[420330975,1775973048002,-516.69,0.000357,30]
[420330976,1775973048018,-500.0,0.00035743,120]
[420330977,1775973048028,-213.0,0.00035818,30]
[420330978,1775973048041,-278.0,0.00035818,30]
[420330979,1775973048051,-915.0,0.00035818,30]
[420330980,1775973048064,-222.0,0.00035825,30]
[420330981,1775973048073,-320.0,0.00035825,30]
[420330982,1775973048085,-679.0,0.00035825,30]
[420330983,1775973048096,-1201.0,0.00035825,30]
[420330984,1775973048106,-365.0,0.00035832,30]
[420330985,1775973048115,-364.0,0.00035832,30]
[420330986,1775973048126,-500.0,0.0003589,120]
[420330987,1775973048137,-150.0,0.00035899,2]
[420330988,1775973048146,-1849.97,0.000359,7]
[420330989,1775973048157,-250.0,0.00036,7]
[420330990,1775973048167,-250.0,0.00036,7]
[420330991,1775973048177,-160.0,0.00036,120]
[420330992,1775973048187,-181.92,0.00036063,2]
[420330993,1775973048197,-158.0345,0.000361,2]
[420330994,1775973048207,-505.45933209,0.00036307,2]
[420330995,1775973048217,-181.92,0.00036532,2]
[420330996,1775973048227,-500.0,0.00036712,120]
[420330997,1775973048237,-213.0,0.00036818,30]
[420330998,1775973048248,-278.0,0.00036818,30]
[420330999,1775973048257,-915.0,0.00036818,30]
[420331000,1775973048267,-222.0,0.00036825,30]
[420331001,1775973048276,-320.0,0.00036825,30]
[420331002,1775973048286,-679.0,0.00036825,30]
[420331003,1775973048295,-1201.0,0.00036825,30]
[420331004,1775973048305,-365.0,0.00036832,30]
[420331005,1775973048314,-364.0,0.00036832,30]
[420331006,1775973048323,-250.0,0.00037,7]
[420331007,1775973048333,-301.53,0.00037,30]
[420331008,1775973048342,-516.69,0.00037,30]
[420331009,1775973048351,-1849.97,0.000372,7]
[420331010,1775973048361,-195.33088735,0.000372,120]
[420331011,1775973048370,-158.4932,0.000373,2]
[420331012,1775973048380,-500.0,0.00037499,2]
[420331013,1775973048389,-500.0,0.00037534,120]
[420331014,1775973048399,-439.53607655,0.00037621,2]
[420331015,1775973048408,-351.46,0.00037689,30]
[420331016,1775973048418,-150.0,0.00037694,2]
[420331017,1775973048427,-213.0,0.00037818,30]
[420331018,1775973048437,-278.0,0.00037818,30]
[420331019,1775973048446,-915.0,0.00037818,30]
[420331020,1775973048455,-222.0,0.00037825,30]
[420331021,1775973048464,-320.0,0.00037825,30]
[420331022,1775973048476,-679.0,0.00037825,30]
[420331023,1775973048486,-1201.0,0.00037825,30]
[420331024,1775973048495,-500.0,0.00037827,120]
[420331025,1775973048504,-365.0,0.00037832,30]
[420331026,1775973048515,-364.0,0.00037832,30]
[420331027,1775973048524,-2424.078,0.00037948,50]
[420331028,1775973048533,-480.59817413,0.00037999,2]
[420331029,1775973048542,-500.0,0.00037999,120]
[420331030,1775973048552,-250.0,0.00038,7]
[420331031,1775973048563,-301.53,0.00038,30]
[420331032,1775973048572,-516.69,0.00038,30]
[420331033,1775973048582,-782.74,0.00038034,30]
[420331034,1775973048592,-150.0,0.00038034,30]
[420331035,1775973048604,-150.0,0.00038034,30]
[420331036,1775973048615,-150.0,0.00038034,30]
[420331037,1775973048624,-13645.90841523,0.0003805,2]
[420331038,1775973048633,-3782.52146621,0.0003805,2]
[420331039,1775973048646,-1849.97,0.000381,7]
[420331040,1775973048656,-36229.0,0.00038275,2]
[420331041,1775973048665,-500.0,0.00038355,120]
[420331042,1775973048675,-500.0,0.00038355,2]
[420331043,1775973048687,-500.0,0.00038356,120]
[420331044,1775973048697,-1000.0,0.00038356,2]
[420331045,1775973048706,-1000.0,0.00038356,2]
[420331046,1775973048715,-1000.0,0.00038356,2]
[420331047,1775973048827,-1000.0,0.00038356,2]
[420331048,1775973048836,-1000.0,0.00038356,2]
[420331049,1775973048845,-1000.0,0.00038356,2]
[420331050,1775973048858,-1000.0,0.00038356,2]
[420331051,1775973048868,-1000.0,0.00038356,2]
[420331052,1775973048879,-1000.0,0.00038356,2]
[420331053,1775973048889,-1000.0,0.00038356,2]
[420331054,1775973048902,-1022.01189616,0.00038356,2]
[420331055,1775973048911,-500.0,0.00038356,2]
[420331056,1775973048921,-246.52857682,0.00038356,2]
[420331057,1775973048930,-927.89,0.00038356,2]
[420331058,1775973048939,-927.89,0.00038356,2]
[420331059,1775973048952,-927.89,0.00038356,2]
[420331060,1775973048961,-927.89,0.00038356,2]
[420331061,1775973048971,-927.89,0.00038356,2]
[420331062,1775973048980,-927.89,0.00038356,2]
[420331063,1775973048996,-927.89,0.00038356,2]
[420331064,1775973049006,-927.89,0.00038356,2]
[420331065,1775973049016,-927.89,0.00038356,2]
[420331066,1775973049026,-927.89,0.00038356,2]
[420331067,1775973049043,-927.89,0.00038356,2]
[420331068,1775973049053,-927.89,0.00038356,2]
[420331069,1775973049062,-927.89,0.00038356,2]
[420331070,1775973049074,-927.89,0.00038356,2]
[420331071,1775973049088,-927.89,0.00038356,2]
[420331072,1775973049097,-927.89,0.00038356,2]
[420331073,1775973049106,-927.89,0.00038356,2]
[420331074,1775973049125,-927.89,0.00038356,2]
[420331075,1775973049134,-927.89,0.00038356,2]
[420331076,1775973049143,-927.89,0.00038356,2]
[420331077,1775973049156,-927.89,0.00038356,2]
[420331078,1775973049171,-927.89,0.00038356,2]
[420331079,1775973049180,-927.89,0.00038356,2]
[420331080,1775973049189,-928.09000001,0.00038356,2]
[420331081,1775973049209,-820.03,0.00038356,2]
[420331082,1775973049218,-820.03,0.00038356,2]
[420331083,1775973049227,-820.03,0.00038356,2]
[420331084,1775973049240,-820.03,0.00038356,2]
[420331085,1775973049254,-820.03,0.00038356,2]
[420331086,1775973049264,-820.03,0.00038356,2]
[420331087,1775973049273,-820.03,0.00038356,2]
[420331088,1775973049282,-820.03,0.00038356,2]
[420331089,1775973049296,-820.03,0.00038356,2]
[420331090,1775973049306,-820.03,0.00038356,2]
[420331091,1775973049315,-820.03,0.00038356,2]
[420331092,1775973049324,-820.03,0.00038356,2]
[420331093,1775973049336,-820.03,0.00038356,2]
[420331094,1775973049348,-820.03,0.00038356,2]
[420331095,1775973049361,-820.03,0.00038356,2]
[420331096,1775973049376,-820.03,0.00038356,2]
[420331097,1775973049385,-820.03,0.00038356,2]
[420331098,1775973049394,-820.03,0.00038356,2]
[420331099,1775973049410,-820.03,0.00038356,2]
[420331100,1775973049423,-820.03,0.00038356,2]
[420331101,1775973049432,-820.03,0.00038356,2]
[420331102,1775973049444,-820.03,0.00038356,2]
[420331103,1775973049464,-820.03,0.00038356,2]
[420331104,1775973049473,-820.15226912,0.00038356,2]
[420331105,1775973049487,-300.0,0.00038356,2]
[420331106,1775973049499,-300.0,0.00038356,2]
[420331107,1775973049519,-300.0,0.00038356,2]
[420331108,1775973049531,-300.0,0.00038356,2]
[420331109,1775973049544,-300.0,0.00038356,2]
[420331110,1775973049557,-300.0,0.00038356,2]
[420331111,1775973049566,-300.0,0.00038356,2]
[420331112,1775973049581,-300.0,0.00038356,2]
[420331113,1775973049595,-300.0,0.00038356,2]
[420331114,1775973049604,-300.0,0.00038356,2]
[420331115,1775973049619,-300.0,0.00038356,2]
[420331116,1775973049635,-300.0,0.00038356,2]
[420331117,1775973049646,-300.0,0.00038356,2]
[420331118,1775973049661,-300.0,0.00038356,2]
[420331119,1775973049685,-300.0,0.00038356,2]
[420331120,1775973049732,-300.0,0.00038356,2]
[420331121,1775973049753,-300.0,0.00038356,2]
[420331122,1775973049772,-300.0,0.00038356,2]
[420331123,1775973049785,-300.0,0.00038356,2]
[420331124,1775973049811,-300.0,0.00038356,2]
[420331125,1775973049820,-300.0,0.00038356,2]
[420331126,1775973049841,-300.0,0.00038356,2]
[420331127,1775973049858,-300.0,0.00038356,2]
[420331128,1775973049872,-300.0,0.00038356,2]
[420331129,1775973049896,-300.0,0.00038356,2]
[420331130,1775973049905,-300.0,0.00038356,2]
[420331131,1775973049919,-300.0,0.00038356,2]
[420331132,1775973049942,-300.0,0.00038356,2]
[420331133,1775973049956,-300.0,0.00038356,2]
[420331134,1775973049978,-300.0,0.00038356,2]
[420331135,1775973049997,-300.0,0.00038356,2]
[420331136,1775973050019,-405.29943695,0.00038356,2]
[420331137,1775973050037,-500.0,0.00038356,2]
[420331138,1775973050051,-500.0,0.00038356,2]
[420331139,1775973050062,-1000.0,0.00038356,120]
[420331140,1775973050078,-158.9533,0.000386,2]
[420331141,1775973050088,-150.0,0.000386,10]
[420331142,1775973050105,-500.0,0.00038629,2]
[420331143,1775973050120,-893.0259318,0.00038675,2]
[420331144,1775973050130,-181.2814981,0.00038675,2]
[420331145,1775973050143,-500.0,0.00038679,120]
[420331146,1775973050164,-500.0,0.00038679,2]
[420331147,1775973050175,-150.0,0.00038762,30]
[420331148,1775973050203,-150.0,0.00038762,7]
[420331149,1775973050214,-150.0,0.00038762,7]
[420331150,1775973050254,-150.0,0.00038762,7]
[420331151,1775973050269,-150.0,0.00038762,7]
[420331152,1775973050278,-150.0,0.00038762,7]
[420331153,1775973050301,-150.0,0.00038762,7]
[420331154,1775973050318,-213.0,0.00038818,30]
[420331155,1775973050331,-278.0,0.00038818,30]
[420331156,1775973050345,-915.0,0.00038818,30]
[420331157,1775973050361,-222.0,0.00038825,30]
[420331158,1775973050375,-320.0,0.00038825,30]
[420331159,1775973050388,-679.0,0.00038825,30]
[420331160,1775973050404,-1201.0,0.00038825,30]
[420331161,1775973050419,-150.0,0.00038825,30]
[420331162,1775973050432,-205.0,0.00038825,30]
[420331163,1775973050446,-150.0,0.00038825,30]
[420331164,1775973050459,-255.0,0.00038825,30]
[420331165,1775973050468,-365.0,0.00038832,30]
[420331166,1775973050478,-364.0,0.00038832,30]
[420331167,1775973050487,-500.0,0.00038903,120]
[420331168,1775973050500,-250.0,0.00039,7]
[420331169,1775973050512,-500.0,0.00039177,120]
[420331170,1775973050521,-500.0,0.00039178,120]
[420331171,1775973050530,-500.0,0.00039451,2]
[420331172,1775973050540,-439.53607655,0.00039566,2]
[420331173,1775973050557,-150.0,0.00039579,2]
[420331174,1775973050566,-500.0,0.0003959,120]
[420331175,1775973050575,-1849.97,0.000396,7]
[420331176,1775973050587,-307.0,0.000397,2]
[420331177,1775973050604,-1000.0,0.000397,2]
[420331178,1775973050613,-784.0,0.000397,2]
[420331179,1775973050622,-500.0,0.00039715,120]
[420331180,1775973050649,-500.0,0.00039725,120]
[420331181,1775973050658,-159.4148,0.000398,2]
[420331182,1775973050670,-351.46,0.00039852,30]
[420331183,1775973050694,-1000.0,0.0003995,120]
[420331184,1775973050703,-350.0,0.0003995,120]
[420331185,1775973050715,-350.0,0.0003995,120]
[420331186,1775973050728,-313.0,0.0003995,120]
[420331187,1775973050738,-500.0,0.0004,120]
[420331188,1775973050747,-907.55,0.0004,45]
[420331189,1775973050763,-250.0,0.0004,7]
[420331190,1775973050776,-300.0,0.0004,120]
[420331191,1775973050792,-300.0,0.0004,120]
[420331192,1775973050805,-288.0,0.0004,120]
[420331193,1775973050819,-250.0,0.0004,7]
[420331194,1775973050833,-195.0,0.0004,7]
[420331195,1775973050855,-500.0,0.0004,120]
[420331196,1775973050864,-500.0,0.0004,120]
[420331197,1775973050875,-2000.0,0.0004,120]
[420331198,1775973050890,-2006.66,0.00040029,120]
[420331199,1775973050900,-1500.0,0.00040136,120]
[420331200,1775973050909,-500.0,0.00040233,120]
[420331201,1775973050918,-246.92233864,0.00040233,2]
[420331202,1775973050931,-1500.0,0.00040273,120]
[420331203,1775973050941,-500.0,0.0004031,120]
[420331204,1775973050951,-1500.0,0.0004041,120]
[420331205,1775973050960,-192.0,0.000405,120]
[420331206,1775973050969,-907.55,0.0004052,53]
[420331207,1775973050986,-500.0,0.00040522,120]
[420331208,1775973050998,-1500.0,0.00040547,120]
[420331209,1775973051007,-1000.0,0.0004067,120]
[420331210,1775973051020,-1500.0,0.00040684,120]
[420331211,1775973051034,-505.45933209,0.00040753,28]
[420331212,1775973051044,-2172.7672,0.000408,120]
[420331213,1775973051053,-1500.0,0.00040821,120]
[420331214,1775973051062,-500.0,0.00040822,120]
[420331215,1775973051078,-1574.0,0.00040936,11]
[420331216,1775973051088,-500.0,0.00040949,120]
[420331217,1775973051097,-500.0,0.00040949,120]
[420331218,1775973051107,-500.0,0.00040949,120]
[420331219,1775973051123,-644.32849301,0.00040949,120]
[420331220,1775973051133,-1500.0,0.00040958,120]
[420331221,1775973051146,-400.53794241,0.00040995,2]
[420331222,1775973051164,-159.8775,0.00041,2]
[420331223,1775973051174,-192.0,0.00041,120]
[420331224,1775973051187,-175.33642641,0.00041,120]
[420331225,1775973051200,-500.0,0.00041014,2]
[420331226,1775973051210,-500.0,0.0004103,120]
[420331227,1775973051228,-907.55,0.0004104,60]
[420331228,1775973051237,-1564.87,0.00041086,120]
[420331229,1775973051254,-1500.0,0.00041095,120]
[420331230,1775973051272,-1528.0,0.00041096,120]
[420331231,1775973051284,-1000.0,0.00041096,120]
[420331232,1775973051294,-200.4,0.00041096,30]
[420331233,1775973051311,-1564.87,0.00041102,120]
[420331234,1775973051320,-300.0,0.00041102,2]
[420331235,1775973051335,-300.0,0.00041102,2]
[420331236,1775973051353,-418.62084883,0.00041102,2]
[420331237,1775973051363,-300.0,0.00041102,2]
[420331238,1775973051380,-300.0,0.00041102,2]
[420331239,1775973051402,-300.0,0.00041102,2]
[420331240,1775973051411,-300.0,0.00041102,2]
[420331241,1775973051430,-300.0,0.00041102,2]
[420331242,1775973051448,-300.0,0.00041102,2]
[420331243,1775973051457,-300.0,0.00041102,2]
[420331244,1775973051485,-300.0,0.00041102,2]
[420331245,1775973051494,-300.0,0.00041102,2]
[420331246,1775973051512,-300.0,0.00041102,2]
[420331247,1775973051526,-300.0,0.00041102,2]
[420331248,1775973051535,-528.04365959,0.00041102,2]
[420331249,1775973051551,-899.26895968,0.00041102,2]
[420331250,1775973051572,-300.26139511,0.00041102,2]
[420331251,1775973051582,-300.0,0.00041102,2]
[420331252,1775973051597,-300.0,0.00041102,2]
[420331253,1775973051609,-649.85498405,0.00041102,2]
[420331254,1775973051621,-300.0,0.00041102,2]
[420331255,1775973051634,-300.0,0.00041102,2]
[420331256,1775973051645,-300.0,0.00041102,2]
[420331257,1775973051661,-300.0,0.00041102,2]
[420331258,1775973051671,-300.0,0.00041102,2]
[420331259,1775973051684,-300.0,0.00041102,2]
[420331260,1775973051697,-300.0,0.00041102,2]
[420331261,1775973051708,-309.27527185,0.00041102,2]
[420331262,1775973051721,-461.46808937,0.00041102,2]
[420331263,1775973051730,-432.38544327,0.00041102,2]
[420331264,1775973051744,-300.0,0.00041102,2]
[420331265,1775973051756,-449.52242756,0.00041102,2]
[420331266,1775973051773,-300.0,0.00041102,2]
[420331267,1775973051789,-303.30830428,0.00041102,2]
[420331268,1775973051800,-300.0,0.00041102,2]
[420331269,1775973051814,-308.23464908,0.00041102,2]
[420331270,1775973051831,-300.0,0.00041102,2]
[420331271,1775973051842,-300.0,0.00041102,2]
[420331272,1775973051859,-300.0,0.00041102,2]
[420331273,1775973051875,-418.62084883,0.00041102,2]
[420331274,1775973051886,-300.0,0.00041102,2]
[420331275,1775973051907,-300.0,0.00041102,2]
[420331276,1775973051926,-300.0,0.00041102,2]
[420331277,1775973051935,-300.0,0.00041102,2]
[420331278,1775973051971,-300.0,0.00041102,2]
[420331279,1775973051994,-300.0,0.00041102,2]
[420331280,1775973052010,-300.0,0.00041102,2]
[420331281,1775973052031,-300.0,0.00041102,2]
[420331282,1775973052058,-300.0,0.00041102,2]
[420331283,1775973052093,-300.0,0.00041102,2]
[420331284,1775973052117,-300.0,0.00041102,2]
[420331285,1775973052133,-300.0,0.00041102,2]
[420331286,1775973052150,-300.0,0.00041102,2]
[420331287,1775973052190,-300.0,0.00041102,2]
[420331288,1775973052214,-300.0,0.00041102,2]
[420331289,1775973052270,-300.0,0.00041102,2]
[420331290,1775973052288,-300.0,0.00041102,2]
[420331291,1775973052315,-300.0,0.00041102,2]
[420331292,1775973052328,-300.0,0.00041102,2]
[420331293,1775973052362,-300.07786896,0.00041102,2]
[420331294,1775973052387,-601.3538603,0.00041102,2]
[420331295,1775973052428,-300.0,0.00041102,2]
[420331296,1775973052456,-300.0,0.00041102,2]
[420331297,1775973052479,-300.0,0.00041102,2]
[420331298,1775973052493,-300.0,0.00041102,2]
[420331299,1775973052516,-528.04365959,0.00041102,2]
[420331300,1775973052528,-300.0,0.00041102,2]
[420331301,1775973052538,-899.26895968,0.00041102,2]
[420331302,1775973052559,-311.0904451,0.00041102,2]
[420331303,1775973052571,-300.26139511,0.00041102,2]
[420331304,1775973052581,-300.0,0.00041102,2]
[420331305,1775973052598,-300.0,0.00041102,2]
[420331306,1775973052610,-300.0,0.00041102,2]
[420331307,1775973052625,-649.85498405,0.00041102,2]
[420331308,1775973052645,-300.0,0.00041102,2]
[420331309,1775973052659,-300.0,0.00041102,2]
[420331310,1775973052669,-300.0,0.00041102,2]
[420331311,1775973052693,-300.0,0.00041102,2]
[420331312,1775973052703,-1141.26575184,0.00041102,2]
[420331313,1775973052714,-307.99628653,0.00041102,2]
[420331314,1775973052738,-300.0,0.00041102,2]
[420331315,1775973052750,-300.0,0.00041102,2]
[420331316,1775973052770,-300.0,0.00041102,2]
[420331317,1775973052790,-309.27527185,0.00041102,2]
[420331318,1775973052806,-300.0,0.00041102,2]
[420331319,1775973052819,-461.46808937,0.00041102,2]
[420331320,1775973052831,-432.38544327,0.00041102,2]
[420331321,1775973052842,-300.0,0.00041102,2]
[420331322,1775973052857,-449.52242756,0.00041102,2]
[420331323,1775973052873,-300.0,0.00041102,2]
[420331324,1775973052886,-300.0,0.00041102,2]
[420331325,1775973052900,-303.30830428,0.00041102,2]
[420331326,1775973052917,-300.0,0.00041102,2]
[420331327,1775973052932,-300.0,0.00041102,2]
[420331328,1775973052948,-300.0,0.00041102,2]
[420331329,1775973052958,-521.99006972,0.00041102,2]
[420331330,1775973052973,-308.23464908,0.00041102,2]
[420331331,1775973052985,-300.0,0.00041102,2]
[420331332,1775973053005,-300.0,0.00041102,2]
[420331333,1775973053017,-300.0,0.00041102,2]
[420331334,1775973053029,-418.62084883,0.00041102,2]
[420331335,1775973053047,-300.0,0.00041102,2]
[420331336,1775973053060,-300.0,0.00041102,2]